bitfinex/quotes_ETHUSD_20240717
["timestamp","ask_amount","ask_price","bid_price","bid_amount"]
[1721241835635,0.61317188,3424.1,3423.9,3.96564]
[1721241836167,0.61317188,3424.1,3424.0,2.92056]
[1721241836668,0.74201748,3424.1,3424.0,2.92056]
[1721241837468,0.1288456,3424.1,3423.9,1.045]
[1721241837649,0.61327524,3424.0,3423.9,3.96564]
[1721241837852,0.74212011,3424.0,3423.9,3.96564]
[1721241838051,0.74212011,3424.0,3423.9,1.045]
[1721241843597,0.12884487,3424.0,3423.9,1.045]
[1721241843766,0.74215625,3424.0,3423.9,1.045]
[1721241846368,0.12884487,3424.0,3423.9,4.98482411]
[1721241846566,0.12884487,3424.0,3423.9,7.30002411]
[1721241847187,0.61331138,3424.1,3423.9,7.30002411]
[1721241847998,0.61331138,3424.1,3424.0,2.92056]
[1721241849096,0.74216686,3424.1,3424.0,2.92056]
[1721241852508,0.74216686,3424.1,3424.0,3.94261841]
[1721241852805,0.74216686,3424.1,3424.0,6.86317841]
[1721241853017,0.12885548,3424.1,3424.0,12.83047841]
[1721241853157,0.61331138,3424.5,3424.2,2.92037]
[1721241853356,0.61331138,3424.6,3424.4,3.96521]
[1721241853756,0.12458605,3424.5,3424.4,3.96521]
[1721241854000,0.61331138,3424.7,3424.4,3.96521]
[1721241854206,0.12458643,3424.5,3424.4,3.96521]
[1721241854912,0.61331138,3424.7,3424.4,3.96521]
[1721241855088,0.12458643,3424.5,3424.4,3.96521]
[1721241855607,0.12464535,3424.5,3424.4,3.96521]
[1721241855811,0.61331138,3424.7,3424.4,3.96521]
[1721241855958,0.12464535,3424.5,3424.4,3.96521]
[1721241856157,0.61331138,3424.7,3424.6,2.92004]
[1721241856354,0.61331138,3424.7,3424.6,3.96504]
[1721241856608,0.61331138,3424.8,3424.6,3.96504]
[1721241856907,0.61331138,3424.8,3424.7,2.91996]
[1721241858281,0.61331138,3424.8,3424.6,3.96504]
[1721241859066,0.61331138,3424.9,3424.6,3.96504]
[1721241860180,0.61331138,3424.8,3424.6,3.96504]
[1721241860564,0.61331138,3424.9,3424.6,3.96504]
[1721241861460,0.61331138,3424.9,3424.4,2.9202]
[1721241861711,0.61331138,3424.9,3424.6,1.045]
[1721241862466,0.12362286,3424.8,3424.6,1.045]
[1721241863223,0.12362286,3424.8,3424.6,1.045]
[1721241864905,0.73693424,3424.8,3424.6,1.045]
[1721241865799,0.12362286,3424.8,3424.6,1.045]
[1721241865978,0.73693424,3424.8,3424.6,1.045]
[1721241867497,0.73693424,3424.8,3424.4,2.92017]
[1721241867498,0.73693424,3424.8,3424.4,3.96517]
[1721241868469,0.73693424,3424.8,3424.4,3.96519]
[1721241876845,0.73693424,3424.8,3424.1,5.3906]
[1721241877012,2.3246,3424.7,3424.1,1.045]
[1721241877215,2.3246,3424.7,3424.0,7.38]
[1721241877216,0.61331138,3424.6,3424.0,7.38]
[1721241877428,0.61331138,3424.3,3424.0,7.38]
[1721241877836,0.73698045,3424.2,3424.0,7.38]
[1721241879351,0.12366907,3424.2,3424.0,7.38]
[1721241879496,0.61331138,3424.3,3424.0,7.38]
[1721241879691,0.12360756,3424.2,3424.0,7.38]
[1721241879911,0.61331138,3424.3,3424.0,7.38]
[1721241880096,0.12360756,3424.2,3424.0,7.38]
[1721241880311,0.61331138,3424.3,3424.0,7.38]
[1721241880639,0.12360683,3424.1,3424.0,7.38]
[1721241880824,0.61331138,3424.3,3424.0,7.38]
[1721241881024,0.61331138,3424.3,3423.7,3.96581]
[1721241881203,0.12360756,3424.2,3423.8,3.0]
[1721241881400,0.61331138,3424.3,3423.8,3.0]
[1721241881603,0.12360683,3424.1,3423.8,3.0]
[1721241881821,0.61331138,3424.3,3423.8,3.0]
[1721241882027,0.1236061,3424.0,3423.8,3.0]
[1721241882241,0.61331138,3424.3,3423.8,3.0]
[1721241882411,0.12360538,3423.9,3423.8,3.0]
[1721241882740,0.12360576,3423.9,3423.8,3.0]
[1721241882943,0.61331138,3424.3,3423.8,3.0]
[1721241883150,0.12360576,3423.9,3423.8,3.0]
[1721241883436,0.61331138,3424.3,3423.8,3.0]
[1721241883613,0.12360576,3423.9,3423.8,3.0]
[1721241883830,0.61331138,3424.3,3423.8,3.0]
[1721241884001,0.12360576,3423.9,3423.8,3.0]
[1721241884201,0.61331138,3424.3,3423.8,3.0]
[1721241884732,0.12360794,3424.2,3423.8,3.0]
[1721241884942,0.61331138,3424.3,3423.8,3.0]
[1721241885256,0.12360721,3424.1,3423.8,3.0]
[1721241885447,0.12360794,3424.2,3423.8,3.0]
[1721241885636,0.61331138,3424.3,3423.8,3.0]
[1721241885637,0.12360649,3424.0,3423.8,3.0]
[1721241885953,0.12360576,3423.9,3423.8,3.0]
[1721241886157,0.61331138,3424.3,3423.8,3.0]
[1721241886367,0.61331138,3424.3,3423.7,4.270789]
[1721241886368,0.1236073,3423.9,3423.7,0.304979]
[1721241886652,0.1236073,3423.9,3423.4,1.045]
[1721241886653,2.4264,3423.9,3423.4,1.045]
[1721241886848,0.12351951,3423.8,3423.6,1.045]
[1721241887348,2.4264,3423.9,3423.6,1.045]
[1721241888422,0.61331138,3424.0,3423.6,1.045]
[1721241888752,0.61331138,3424.1,3423.8,1.045]
[1721241889062,0.12345511,3423.9,3423.8,1.045]
[1721241889241,0.61331138,3424.1,3423.8,1.045]
[1721241889743,0.12345583,3424.0,3423.8,1.045]
[1721241890908,0.12345583,3424.0,3423.6,3.96588]
[1721241891109,0.61331138,3424.2,3423.8,3.96567]
[1721241891416,0.12346412,3424.1,3423.8,3.96567]
[1721241891648,0.61331138,3424.3,3423.8,3.96567]
[1721241891807,0.12346339,3424.0,3423.8,3.96567]
[1721241892012,0.61331138,3424.3,3423.8,7.820615]
[1721241892234,0.61331138,3424.3,3424.0,1.045]
[1721241892644,0.12346485,3424.2,3424.0,1.045]
[1721241893135,0.12346412,3424.1,3424.0,1.045]
[1721241893345,0.61331138,3424.3,3423.8,3.96567]
[1721241893524,0.12347167,3424.1,3423.9,2.92064]
[1721241893852,0.61331138,3424.3,3423.9,2.92064]
[1721241894069,0.12347094,3424.0,3423.9,2.92064]
[1721241894223,0.61331138,3424.3,3423.9,2.92064]
[1721241894420,0.12347848,3424.0,3423.9,2.92064]
[1721241894615,0.61331138,3424.3,3423.9,2.92064]
[1721241894817,0.12347848,3424.0,3423.9,2.92064]
[1721241895060,0.61331138,3424.3,3423.9,2.92064]
[1721241895661,0.12347993,3424.2,3423.8,1.045]
[1721241895958,0.61331138,3424.3,3423.8,1.045]
[1721241896257,0.12348373,3424.1,3423.8,1.045]
[1721241896459,0.12348446,3424.2,3423.8,1.045]
[1721241896660,0.12348301,3424.0,3423.8,3.96568]
[1721241896847,0.61331138,3424.3,3423.8,3.96568]
[1721241897018,0.12348228,3423.9,3423.8,3.96568]
[1721241897218,0.61331138,3424.3,3423.8,3.96568]
[1721241897420,0.12348228,3423.9,3423.8,3.96568]
[1721241897959,0.61331138,3424.3,3423.8,3.96568]
[1721241898163,0.12348228,3423.9,3423.8,3.96568]
[1721241898319,0.61331138,3424.3,3423.8,3.96568]
[1721241898520,0.12348144,3424.2,3423.8,3.96568]
[1721241898816,0.61331138,3424.3,3423.8,3.96568]
[1721241899019,0.12348071,3424.1,3423.8,3.96568]
[1721241899219,0.61331138,3424.3,3423.8,3.96568]
[1721241899420,0.12347999,3424.0,3423.8,3.96568]
[1721241899720,0.12347926,3423.9,3423.8,3.96568]
[1721241899915,0.61331138,3424.3,3423.8,3.96568]
[1721241900166,0.12348295,3424.2,3423.8,3.96568]
[1721241900369,0.61331138,3424.3,3423.8,3.96568]
[1721241900567,0.12348222,3424.1,3423.8,3.96568]
[1721241900773,0.61331138,3424.3,3423.8,3.96568]
[1721241900922,0.12347999,3424.0,3423.8,1.045]
[1721241901121,0.61331138,3424.3,3423.8,2.92072]
[1721241901622,0.12286477,3424.2,3423.8,2.92072]
[1721241901824,0.61331138,3424.3,3423.8,2.92072]
[1721241902027,0.12286405,3424.1,3423.8,2.92072]
[1721241902280,0.61331138,3424.3,3423.8,2.92072]
[1721241902423,0.12286332,3424.0,3423.8,2.92072]
[1721241902622,0.61331138,3424.3,3423.8,2.92072]
[1721241902876,0.12286259,3423.9,3423.7,0.30485518]
[1721241903168,0.61331138,3424.3,3423.7,3.22565518]
[1721241903657,0.12286477,3424.2,3423.7,3.22565518]
[1721241904163,0.12286477,3424.2,3423.8,2.92072]
[1721241904358,0.61331138,3424.3,3423.8,2.92072]
[1721241904532,0.12286405,3424.1,3423.8,2.92072]
[1721241904725,0.61331138,3424.3,3423.8,2.92072]
[1721241904924,0.12286477,3424.2,3423.8,2.92072]
[1721241905125,2.90401138,3424.5,3423.8,3.96572]
[1721241905331,0.73617309,3424.4,3423.8,3.96572]
[1721241905651,0.61331138,3424.3,3423.8,3.96572]
[1721241906037,0.12286025,3424.2,3423.8,3.96572]
[1721241906248,0.61331138,3424.2,3423.8,3.96572]
[1721241906458,0.12285809,3424.1,3423.8,3.96572]
[1721241906661,0.12285809,3424.1,3423.8,4.36968282]
[1721241907146,0.61331138,3424.4,3423.8,4.36968282]
[1721241907339,0.61331138,3424.4,3423.8,3.96572]
[1721241907546,0.61331138,3424.3,3423.8,3.96572]
[1721241907746,0.12285882,3424.2,3423.8,3.96572]
[1721241907946,0.61331138,3424.3,3423.8,3.96572]
[1721241908253,0.12285882,3424.2,3423.8,3.96572]
[1721241908467,0.7361702,3424.2,3423.8,3.96572]
[1721241908674,0.61331138,3424.3,3423.8,3.96572]
[1721241908873,0.12285809,3424.1,3423.8,3.96572]
[1721241909060,0.12285809,3424.1,3423.5,2.4562]
[1721241909061,0.61331138,3424.1,3423.5,2.4562]
[1721241909374,0.12285882,3424.2,3423.4,2.92103]
[1721241909375,3.22577784,3424.0,3423.4,2.92103]
[1721241909555,3.22577784,3424.0,3423.4,2.921]
[1721241910088,3.22577784,3424.0,3423.5,2.92097]
[1721241910900,0.61331138,3423.9,3423.5,2.92097]
[1721241911238,0.12285091,3423.8,3423.5,2.92097]
[1721241913551,0.12285091,3423.8,3423.4,3.96605]
[1721241916901,0.12285091,3423.8,3423.4,1.045]
[1721241917457,0.12285091,3423.8,3423.4,3.96604]
[1721241917698,0.12285091,3423.8,3423.4,5.924734]
[1721241918077,0.12285091,3423.8,3423.7,2.3993]
[1721241918408,0.61331138,3424.1,3423.7,3.4443]
[1721241918572,0.11872546,3423.8,3423.7,3.4443]
[1721241918759,0.61331138,3424.1,3423.7,3.4443]
[1721241919418,0.61331138,3424.1,3423.8,2.92073]
[1721241919699,0.1171773,3424.0,3423.9,1.045]
[1721241920108,0.1171773,3424.0,3423.9,3.96564]
[1721241920596,0.61331138,3424.1,3423.9,3.96564]
[1721241920835,0.1171773,3424.0,3423.9,3.96564]
[1721241921993,0.1171773,3424.0,3423.9,2.92064]
[1721241922577,0.73048868,3424.0,3423.9,2.92064]
[1721241923371,0.73048868,3424.0,3423.7,6.36511]
[1721241923372,0.73048868,3424.0,3423.7,9.28586]
[1721241923586,0.73048868,3424.0,3423.7,6.36505]
[1721241923791,0.73048868,3424.0,3423.7,2.92075]
[1721241923993,0.61331138,3423.9,3423.7,2.92075]
[1721241924279,0.61331138,3423.8,3423.5,9.25636]
[1721241924816,0.11717326,3423.7,3423.5,3.4145]
[1721241925001,0.61331138,3423.8,3423.3,0.30479031]
[1721241925251,0.73050863,3423.6,3423.3,0.30479031]
[1721241925555,0.11719576,3423.5,3423.3,0.30479031]
[1721241927977,0.61331138,3423.4,3423.0,1.045]
[1721241928260,0.72954211,3423.4,3423.0,3.96638]
[1721241928823,0.72954211,3423.4,3423.0,1.045]
[1721241928824,0.11623073,3423.4,3423.0,1.045]
[1721241929050,0.72954211,3423.4,3423.0,1.045]
[1721241931088,0.72954211,3423.4,3422.8,7.38]
[1721241931089,2.3972,3423.3,3422.8,7.38]
[1721241931235,3.4422,3422.9,3422.8,7.38]
[1721241931550,3.4422,3422.9,3422.2,7.38]
[1721241931751,0.61267488,3422.4,3422.2,7.38]
[1721241931952,0.61269684,3422.5,3422.3,1.045]
[1721241932167,0.61269684,3422.6,3422.3,1.045]
[1721241932389,0.157987,3422.4,3422.0,2.92226]
[1721241932589,0.61269684,3422.7,3422.1,1.629469]
[1721241932878,0.15794434,3422.3,3422.1,1.629469]
[1721241933082,0.61269684,3422.7,3422.1,1.629469]
[1721241933384,0.61269684,3422.8,3422.1,1.629469]
[1721241933683,0.15794434,3422.6,3422.1,1.629469]
[1721241933977,0.15792606,3422.5,3422.2,0.4551729]
[1721241934150,0.61269684,3422.8,3422.2,0.4551729]
[1721241934349,0.15792606,3422.4,3422.2,0.4551729]
[1721241934553,0.61269684,3422.8,3422.2,0.4551729]
[1721241934782,0.15792606,3422.7,3422.2,0.4551729]
[1721241934932,0.61269684,3422.9,3422.2,0.4551729]
[1721241935138,0.15793216,3422.8,3422.1,1.045]
[1721241935484,0.61269684,3422.7,3421.9,1.045]
[1721241935640,2.4549,3422.7,3421.9,1.045]
[1721241935844,3.06759684,3422.7,3421.9,1.045]
[1721241936071,0.15793216,3422.6,3421.9,1.045]
[1721241936272,0.15793216,3422.6,3421.7,3.3784]
[1721241936579,0.15793216,3422.6,3422.0,2.92]
[1721241938543,6.84171684,3423.0,3422.0,2.92]
[1721241938743,2.2626,3422.4,3422.0,2.92]
[1721241938939,1.20275699,3422.3,3422.0,2.92]
[1721241939498,1.045,3422.1,3422.0,2.92]
[1721241939843,1.20273259,3422.1,3422.0,2.92]
[1721241940036,0.15773259,3422.1,3422.0,2.92]
[1721241940741,4.12491259,3422.1,3422.0,2.92]
[1721241944683,6.61391259,3422.1,3422.0,2.92]
[1721241946863,3.69173259,3422.1,3422.0,2.92]
[1721241947077,6.61391259,3422.1,3422.0,2.92]
[1721241949309,9.53609259,3422.1,3422.0,2.92]
[1721241949988,9.53609259,3422.1,3422.0,0.92]
[1721241950612,12.45827259,3422.1,3422.0,0.92]
[1721241953640,12.45827259,3422.1,3420.3,2.9237]
[1721241953641,2.3149,3422.0,3419.9,7.38]
[1721241953790,1.045,3420.2,3419.7,2.4756]
[1721241953997,5.23829,3420.7,3419.4,11.475081]
[1721241953998,1.045,3419.8,3419.4,7.38]
[1721241954228,1.045,3420.0,3419.5,1.279716]
[1721241954447,0.15728138,3419.7,3419.5,1.279716]
[1721241954593,2.92355,3420.5,3419.5,1.279716]
[1721241954794,0.15727528,3419.6,3419.5,1.279716]
[1721241954990,1.045,3420.0,3419.5,1.279716]
[1721241955221,0.15727528,3419.6,3419.5,1.279716]
[1721241955419,1.045,3420.0,3419.2,2.4926]
[1721241955618,0.15717613,3419.6,3419.2,2.4926]
[1721241955831,2.92382,3420.2,3419.5,1.045]
[1721241956137,0.15717613,3419.5,3419.2,2.4926]
[1721241956344,2.92382,3420.2,3419.2,2.4926]
[1721241956345,2.92382,3420.2,3419.2,5.4926]
[1721241956697,0.15717613,3420.1,3419.2,5.4926]
[1721241956896,0.15717613,3420.1,3419.3,1.09665305]
[1721241957095,0.15717613,3420.1,3419.3,4.09665305]
[1721241958423,0.15717613,3420.1,3419.6,2.515]
[1721241958620,2.3149,3420.7,3419.6,2.515]
[1721241958823,0.1570632,3420.0,3419.6,5.43931]
[1721241959125,5.2383,3420.7,3419.7,0.836378]
[1721241959450,0.15182746,3420.6,3419.6,2.92431]
[1721241960292,3.07529746,3420.6,3419.5,2.92438]
[1721241960491,3.07529746,3420.6,3419.4,5.43947]
[1721241960725,0.15182746,3420.6,3419.6,2.9243]
[1721241960940,0.15182746,3420.6,3419.9,2.515]
[1721241965259,0.15182746,3420.6,3420.0,0.776922]
[1721241965462,2.3129,3421.0,3420.3,2.515]
[1721241965673,0.15170696,3420.5,3420.3,2.515]
[1721241965967,2.3129,3421.0,3420.3,2.515]
[1721241966135,0.15170696,3420.4,3420.3,2.515]
[1721241966325,2.3129,3421.0,3420.3,2.515]
[1721241966532,0.15170696,3420.4,3420.3,2.515]
[1721241966769,2.3129,3421.0,3420.3,2.515]
[1721241966973,0.15170696,3420.4,3420.3,2.515]
[1721241967183,5.23603,3421.0,3420.3,2.515]
[1721241967362,0.15170696,3420.4,3420.3,2.515]
[1721241967732,5.23603,3421.0,3420.3,2.515]
[1721241967952,0.15170696,3420.4,3420.3,2.515]
[1721241968190,5.23603,3421.0,3420.3,2.515]
[1721241968395,0.15170696,3420.4,3420.3,2.515]
[1721241968911,0.15174053,3420.4,3420.3,2.515]
[1721241969194,5.23603,3421.0,3420.3,2.515]
[1721241969401,0.15174053,3420.4,3420.3,2.515]
[1721241969895,0.15174053,3420.4,3419.9,2.515]
[1721241970191,5.17712,3420.9,3419.9,2.515]
[1721241970394,0.15174053,3420.3,3419.9,2.515]
[1721241970762,5.17712,3420.9,3419.9,5.43904]
[1721241970973,2.2539,3420.9,3419.9,5.43904]
[1721241971180,0.15177713,3420.8,3420.0,2.4304]
[1721241971417,2.4837,3420.7,3419.3,4.09665305]
[1721241971562,2.92369,3420.4,3419.4,2.92448]
[1721241971898,0.1517695,3420.3,3419.4,2.92448]
[1721241972108,0.1517695,3420.3,3419.3,2.515]
[1721241972418,2.3721,3420.2,3419.4,0.543958]
[1721241972559,2.3721,3420.2,3419.3,2.515]
[1721241972760,2.52385884,3420.2,3419.3,2.515]
[1721241973274,5.44770884,3420.2,3419.3,2.515]
[1721241973600,2.92402,3420.0,3419.0,2.515]
[1721241974127,2.92402,3420.0,3419.0,5.4398]
[1721241974398,0.15161691,3419.9,3419.4,2.515]
[1721241974613,0.15161691,3419.9,3419.4,1.792142]
[1721241974756,5.2959,3420.2,3419.4,1.792142]
[1721241975104,5.29525,3421.0,3420.1,2.515]
[1721241975300,5.29525,3421.0,3419.5,0.05848972]
[1721241975301,2.92323,3420.9,3419.8,2.92413]
[1721241975471,2.92331,3420.8,3419.9,2.515]
[1721241975990,0.14653443,3420.7,3419.9,2.515]
[1721241978186,0.14653443,3420.7,3419.9,5.43904]
[1721241978386,0.14653443,3420.6,3420.3,2.515]
[1721241978588,5.29525,3421.0,3420.3,2.515]
[1721241979000,0.14653443,3420.9,3420.3,2.515]
[1721241985457,0.75923127,3420.9,3420.3,2.515]
[1721241987070,3.68245127,3420.9,3420.3,2.515]
[1721241987372,3.53604684,3420.8,3419.9,2.515]
[1721241987651,0.14674706,3420.7,3419.9,2.515]
[1721241988463,0.7594439,3420.7,3419.9,2.515]
[1721241990375,0.61269684,3420.5,3419.9,2.515]
[1721241990666,0.75943157,3420.4,3419.9,2.515]
[1721241990964,0.14673473,3420.4,3419.9,2.515]
[1721241991466,0.61269684,3420.5,3419.9,2.515]
[1721241991670,0.14673473,3420.3,3419.9,2.515]
[1721241991857,0.61269684,3420.5,3419.9,2.515]
[1721241992375,0.61269684,3420.4,3419.9,2.515]
[1721241992579,0.75943157,3420.4,3419.9,2.515]
[1721241992744,0.14673473,3420.4,3419.9,2.515]
[1721241993474,0.75943157,3420.4,3419.9,2.515]
[1721241994598,0.75943157,3420.4,3419.9,5.43906]
[1721241994599,0.61269684,3420.3,3419.9,5.43906]
[1721241995005,0.14671624,3420.2,3419.9,5.43906]
[1721241995471,0.14671624,3420.2,3420.1,2.3747]
[1721241995673,0.61269684,3420.3,3420.1,2.3747]
[1721241995872,0.14671624,3420.2,3420.1,2.3747]
[1721241996193,0.61269684,3420.5,3420.3,2.92366]
[1721241996381,0.61269684,3420.6,3420.4,5.43862]
[1721241996710,0.61269684,3420.8,3420.6,5.29346]
[1721241996895,0.61269684,3420.9,3420.7,2.92336]
[1721241997060,0.61269684,3421.0,3420.9,2.515]
[1721241997394,0.61269684,3421.1,3420.9,6.511364]
[1721241997690,0.13691824,3421.0,3420.9,6.511364]
[1721241999108,0.61269684,3421.1,3421.0,2.92312]
[1721242001281,0.61269684,3421.3,3421.1,2.923]
[1721242001483,0.61269684,3421.5,3421.1,2.923]
[1721242003823,0.61269684,3421.6,3421.1,2.923]
[1721242006322,0.61269684,3421.4,3420.9,2.515]
[1721242006508,0.61269684,3421.4,3420.9,5.43814]
[1721242006715,0.61269684,3421.3,3420.9,5.43814]
[1721242007907,0.61269684,3421.4,3420.9,5.43814]
[1721242008860,0.61269684,3421.4,3421.0,2.92311]
[1721242009061,0.61269684,3421.5,3421.0,2.92311]
[1721242009228,0.91901232,3421.6,3421.0,2.92311]
[1721242009229,0.61269684,3421.6,3421.2,5.19004]
[1721242009425,0.61269684,3421.6,3421.2,2.2671]
[1721242010546,0.61269684,3421.6,3421.1,2.92301]
[1721242012619,0.13705994,3421.5,3421.1,2.92301]
[1721242013019,3.09549684,3421.7,3421.1,2.92301]
[1721242013215,0.13705994,3421.4,3421.1,2.92301]
[1721242013451,3.09549684,3421.7,3421.1,2.92301]
[1721242013653,0.13705994,3421.3,3421.1,2.92301]
[1721242013823,3.09549684,3421.7,3421.1,2.92301]
[1721242014154,0.13705994,3421.6,3421.1,2.92301]
[1721242016452,0.13705994,3421.6,3421.5,1.047]
[1721242024459,0.13350397,3421.6,3421.5,1.047]
[1721242024669,0.61269684,3421.7,3421.5,1.047]
[1721242024849,0.61269684,3421.7,3421.6,1.047]
[1721242027459,0.91901232,3421.7,3421.6,1.047]
[1721242027679,0.74519189,3421.7,3421.6,1.047]
[1721242028910,2.3374,3421.6,3420.6,2.92341]
[1721242029059,0.61177545,3421.5,3421.2,1.047]
[1721242029407,0.61177545,3421.5,3421.4,1.047]
[1721242029703,0.61185435,3421.5,3421.4,1.047]
[1721242030251,0.61185435,3421.6,3421.4,1.047]
[1721242030486,0.61185435,3421.6,3421.5,1.047]
[1721242031065,0.91766468,3421.7,3421.5,1.047]
[1721242031890,0.61194889,3421.6,3421.5,1.047]
[1721242032456,0.91766468,3421.7,3421.5,1.047]
[1721242034390,0.91766468,3421.7,3420.5,2.92352]
[1721242034391,2.92283,3421.4,3420.1,7.38]
[1721242034706,2.92283,3421.4,3420.3,1.047]
[1721242034707,0.61233719,3420.6,3420.3,1.047]
[1721242034856,0.61233719,3420.5,3420.3,1.047]
[1721242035061,0.61233719,3420.6,3420.3,1.047]
[1721242035375,0.61233719,3420.6,3420.5,1.047]
[1721242038179,0.91766468,3420.7,3420.1,5.43686]
[1721242038483,0.61259566,3420.5,3420.1,5.43686]
[1721242041624,0.61259566,3420.5,3420.1,5.42888822]
[1721242042397,0.61259566,3420.6,3420.4,2.4419]
[1721242042734,0.61259566,3420.7,3420.5,2.156955]
[1721242044635,0.61259566,3420.8,3420.5,2.156955]
[1721242046141,0.61259566,3420.8,3420.5,5.080485]
[1721242046602,0.61259566,3420.8,3420.6,2.92346]
[1721242047820,0.61259566,3421.2,3421.0,2.92305]
[1721242048024,0.91766468,3421.4,3421.1,2.92297]
[1721242048025,0.61259566,3421.4,3421.1,2.92297]
[1721242048233,0.61259566,3421.5,3421.1,2.92297]
[1721242048437,0.61259566,3421.6,3421.2,2.92295]
[1721242049411,0.61259566,3421.5,3421.2,2.92295]
[1721242049950,0.61259566,3421.6,3421.2,2.92295]
[1721242051147,0.61259566,3421.5,3421.2,2.92295]
[1721242052950,0.61259566,3421.5,3421.0,2.92305]
[1721242053735,0.61259566,3421.5,3421.0,5.8461]
[1721242054126,0.61259566,3421.5,3421.0,2.92305]
[1721242054456,0.61259566,3421.6,3421.0,2.92305]
[1721242056107,0.61259566,3421.5,3421.0,2.92305]
[1721242057626,0.13342235,3421.4,3421.0,2.92305]
[1721242058630,0.13342235,3421.4,3420.9,2.513]
[1721242058832,0.13342235,3421.4,3420.9,5.43619]
[1721242059871,0.13342235,3421.4,3421.0,2.9231]
[1721242060477,0.13342235,3421.4,3421.3,1.047]
[1721242061559,0.13211417,3421.4,3421.3,1.047]
[1721242068249,0.74470983,3421.4,3421.3,1.047]
[1721242073482,0.13211417,3421.4,3421.3,1.047]
[1721242075893,0.74470983,3421.4,3421.3,1.047]
[1721242083569,0.13211417,3421.4,3421.3,1.047]
[1721242085380,1.04977885,3421.4,3421.3,1.047]
[1721242088569,0.13211417,3421.4,3421.3,1.047]
[1721242089501,1.35746393,3421.4,3421.3,1.047]
[1721242091061,0.13211417,3421.4,3421.3,1.047]
[1721242091500,1.35746393,3421.4,3421.3,1.047]
[1721242092357,0.13211417,3421.4,3421.3,1.047]
[1721242093399,1.35988016,3421.4,3421.3,1.047]
[1721242093589,0.13211417,3421.4,3421.3,1.047]
[1721242094486,1.66746024,3421.4,3421.3,1.047]
[1721242094660,0.13211417,3421.4,3421.3,1.047]
[1721242095008,1.53539274,3421.4,3421.3,1.047]
[1721242095175,1.66347209,3421.4,3421.3,1.047]
[1721242096007,1.66349512,3421.4,3421.3,1.047]
[1721242097474,1.66360732,3421.4,3421.3,1.047]
[1721242100302,0.12807935,3421.4,3421.3,1.047]
[1721242100814,1.22837322,3421.4,3421.3,1.047]
[1721242100963,1.3564479,3421.4,3421.3,1.047]
[1721242101402,0.12807468,3421.4,3421.3,1.047]
[1721242103393,1.66360524,3421.4,3421.3,1.047]
[1721242103822,1.66371941,3421.4,3421.3,1.047]
[1721242104023,0.12807468,3421.4,3421.3,1.047]
[1721242104314,1.35650645,3421.4,3421.3,1.047]
[1721242104613,0.12807468,3421.4,3421.3,1.047]
[1721242105223,1.35650645,3421.4,3421.3,1.047]
[1721242105592,0.12807468,3421.4,3421.3,1.047]
[1721242106329,1.35651197,3421.4,3421.3,1.047]
[1721242108709,1.35651197,3421.4,3421.3,1.047]
[1721242115622,1.35651197,3421.4,3421.3,0.687135]
[1721242115788,1.35651197,3421.4,3421.3,1.047]
[1721242115984,0.12807468,3421.4,3421.3,1.047]
[1721242119127,0.12807468,3421.4,3421.2,2.92288]
[1721242119358,0.12807468,3421.4,3421.3,1.047]
[1721242120049,0.12809955,3421.4,3421.3,1.047]
[1721242123047,1.22843729,3421.5,3421.3,1.047]
[1721242123541,0.12811042,3421.4,3421.3,1.047]
[1721242123707,1.35654771,3421.4,3421.3,1.047]
[1721242125208,0.12811042,3421.4,3421.3,1.047]
[1721242125746,1.35618558,3421.4,3421.3,1.047]
[1721242128551,0.12811042,3421.4,3421.3,1.047]
[1721242130239,1.35624134,3421.4,3421.3,1.047]
[1721242130825,0.12811042,3421.4,3421.3,1.047]
[1721242131563,5.33760042,3421.4,3420.4,0.6091121]
[1721242131715,0.92117414,3420.5,3420.3,1.047]
[1721242131946,1.22823219,3420.4,3420.3,1.047]
[1721242132222,0.12377794,3420.4,3420.3,1.047]
[1721242132424,2.2867,3420.3,3420.1,1.047]
[1721242132731,0.12374688,3420.2,3420.1,1.047]
[1721242133458,0.12374688,3420.2,3419.9,2.3288]
[1721242133625,0.12374688,3420.2,3420.1,1.047]
[1721242134749,1.04290887,3420.2,3420.1,1.047]
[1721242135769,0.12374688,3420.2,3420.1,1.047]
[1721242136554,0.73603816,3420.2,3420.1,1.047]
[1721242136765,0.73603816,3420.2,3419.9,2.3288]
[1721242136967,0.73603816,3420.2,3420.1,1.047]
[1721242138561,0.12374688,3420.2,3420.1,1.047]
[1721242138925,0.73603816,3420.2,3420.1,1.047]
[1721242139122,0.12374688,3420.2,3420.1,1.047]
[1721242143769,3.04754688,3420.2,3420.1,1.047]
[1721242144073,5.84794,3420.0,3419.9,2.3288]
[1721242144248,8.26374,3420.0,3419.9,2.3288]
[1721242144587,8.38306112,3420.0,3419.9,2.3288]
[1721242145333,8.9942429,3420.0,3419.9,2.3288]
[1721242145776,8.38306112,3420.0,3419.9,2.3288]
[1721242146478,8.99386942,3420.0,3419.9,2.3288]
[1721242147151,12.22619311,3420.0,3419.9,2.3288]
[1721242147393,11.30703112,3420.0,3419.9,2.3288]
[1721242148075,13.5802676,3420.0,3419.9,2.3288]
[1721242148308,19.72898238,3420.0,3419.9,1e-05]
[1721242148496,21.75197112,3420.0,3419.9,1e-05]
[1721242148666,21.75197112,3420.0,3418.2,1.047]
[1721242148667,2.92525,3418.6,3418.2,1.047]
[1721242148848,0.11903448,3418.5,3418.4,1.047]
[1721242149253,0.11903448,3418.5,3417.5,7.38]
[1721242149482,2.4838,3418.8,3418.0,1.047]
[1721242149483,2.92544,3418.3,3418.0,1.047]
[1721242149692,2.9254,3418.4,3418.0,1.047]
[1721242149981,0.11894517,3418.2,3418.0,1.047]
[1721242150291,2.9254,3418.4,3418.2,1.047]
[1721242151469,2.9254,3418.4,3418.0,1.047]